[Event "Djerba Festival Open-B 2025"]
[Site "Djerba"]
[Date "2025.02.21"]
[Round "6.26"]
[White "Boudnani, Brahim"]
[Black "Hafsa, Yessine"]
[Result "1/2-1/2"]
[Annotator "NA"]
[ECO "D00"]
[WhiteElo "1721"]
[BlackElo "1503"]
[PlyCount "135"]
[EventDate "2025.02.15"]
[EventType "swiss"]
[EventCountry "TUN"]
[SourceTitle "playchess.com"]
[Source "ChessBase"]
[SourceQuality "1"]
[TimeControl "5400+30"]

1. d4 {[%emt 1:31:00]} d5 {[%emt 1:31:00]} 2. Bf4 {[%emt 0:00:30]} Nf6 {[%emt 0:00:30]} 3. e3 {[%emt 0:00:30]} c5 {[%emt 0:00:30]} 4. c3 {[%emt 0:00:30]} Nc6 {[%emt 0:00:30]} 5. Nd2 {[%emt 0:00:30]} Bf5 {[%emt 0:00:30]} 6. Ngf3 {[%emt 0:00:30]} h6 {[%emt 0:00:30]} 7. Ne5 {[%emt 0:00:30]} c4 {[%emt 0:00:30]} 8. Be2 {[%emt 0:00:30]} e6 {[%emt 0:00:30]} 9. Bg3 {[%emt 0:00:30]} Be7 {[%emt 0:00:30]} 10. h3 {[%emt 0:00:30]} O-O {[%emt 0:00:30]} 11. Ng4 {[%emt 0:00:30]} Ne4 {[%emt 0:00:30]} 12. Nxe4 {[%emt 0:00:30]} Bxe4 {[%emt 0:00:30]} 13. Bf3 {[%emt 0:00:30]} Bh7 {[%emt 0:00:30]} 14. h4 {[%emt 0:00:30]} b5 {[%emt 0:00:30]} 15. Qd2 {[%emt 0:00:30]} b4 {[%emt 0:00:30]} 16. Bf4 {[%emt 0:00:30]} Qa5 {[%emt 0:00:30]} 17. Bd1 {[%emt 0:00:30]} bxc3 {[%emt 0:00:30]} 18. bxc3 {[%emt 0:00:30]} Nb4 {[%emt 0:00:30]} 19. Kf1 {[%emt 0:00:30]} Nd3 {[%emt 0:00:30]} 20. Bg3 {[%emt 0:00:30]} Ba3 {[%emt 0:00:30]} 21. Bc2 {[%emt 0:00:30]} Bb2 {[%emt 0:00:30]} 22. Rb1 {[%emt 0:00:30]} Bxc3 {[%emt 0:00:30]} 23. Qe2 {[%emt 0:00:30]} Qxa2 {[%emt 0:00:30]} 24. Kg1 {[%emt 0:00:30]} Nb4 {[%emt 0:00:30]} 25. Bxh7+ {[%emt 0:00:30]} Kxh7 {[%emt 0:00:30]} 26. Qd1 {[%emt 0:00:30]} Nd3 {[%emt 0:00:30]} 27. Kh2 {[%emt 0:00:30]} Qd2 {[%emt 0:00:30]} 28. Qf3 {[%emt 0:00:30]} Bb4 {[%emt 0:00:30]} 29. Rhd1 {[%emt 0:00:30]} Qc2 {[%emt 0:00:30]} 30. h5 {[%emt 0:00:30]} Qa4 {[%emt 0:00:30]} 31. Ne5 {[%emt 0:00:30]} Nxe5 {[%emt 0:00:30]} 32. Bxe5 {[%emt 0:00:30]} f6 {[%emt 0:00:30]} 33. Bg3 {[%emt 0:00:30]} a5 {[%emt 0:00:30]} 34. Qg4 {[%emt 0:00:30]} Qe8 {[%emt 0:00:30]} 35. f4 {[%emt 0:00:30]} f5 {[%emt 0:00:30]} 36. Qf3 {[%emt 0:00:30]} Qe7 {[%emt 0:00:30]} 37. Bf2 {[%emt 0:00:30]} a4 {[%emt 0:00:30]} 38. g4 {[%emt 0:00:30]} Bd6 {[%emt 0:00:30]} 39. Kh3 {[%emt 0:00:30]} a3 {[%emt 0:00:30]} 40. Bh4 {[%emt 0:00:30]} fxg4+ {[%emt 0:00:30]} 41. Qxg4 {[%emt 0:00:30]} Qf7 {[%emt 0:00:30]} 42. Rg1 {[%emt 0:00:30]} Qf5 {[%emt 0:00:30]} 43. Rb7 {[%emt 0:00:30]} Qxg4+ {[%emt 0:00:30]} 44. Rxg4 {[%emt 0:00:30]} Rg8 {[%emt 0:00:30]} 45. Bf6 {[%emt 0:00:30]} Bf8 {[%emt 0:00:30]} 46. Rg1 {[%emt 0:00:30]} a2 {[%emt 0:00:30]} 47. Ra1 {[%emt 0:00:30]} Bd6 {[%emt 0:00:30]} 48. Rd7 {[%emt 0:00:30]} Kh8 {[%emt 0:00:30]} 49. Bxg7+ {[%emt 0:00:30]} Rxg7 {[%emt 0:00:30]} 50. Rxd6 {[%emt 0:00:30]} Rc7 {[%emt 0:00:30]} 51. Rxe6 {[%emt 0:00:30]} c3 {[%emt 0:00:30]} 52. Rxh6+ {[%emt 0:00:30]} Kg7 {[%emt 0:00:30]} 53. Rg6+ {[%emt 0:00:30]} Kh7 {[%emt 0:00:30]} 54. Rgg1 {[%emt 0:00:30]} c2 {[%emt 0:00:30]} 55. Rgc1 {[%emt 0:00:30]} Rc3 {[%emt 0:00:30]} 56. Kg4 {[%emt 0:00:30]} Kh6 {[%emt 0:00:30]} 57. f5 {[%emt 0:00:30]} Rxe3 {[%emt 0:00:30]} 58. Rxc2 {[%emt 0:00:30]} Re4+ {[%emt 0:00:30]} 59. Kf3 {[%emt 0:00:30]} Kxh5 {[%emt 0:00:30]} 60. Raxa2 {[%emt 0:00:30]} Rxa2 {[%emt 0:00:30]} 61. Rxa2 {[%emt 0:00:30]} Kg5 {[%emt 0:00:30]} 62. f6 {[%emt 0:00:30]} Rxd4 {[%emt 0:00:30]} 63. Ke3 {[%emt 0:00:30]} Re4+ {[%emt 0:00:30]} 64. Kd3 {[%emt 0:00:30]} Kxf6 {[%emt 0:00:30]} 65. Rf2+ {[%emt 0:00:30]} Ke5 {[%emt 0:00:30]} 66. Rf8 {[%emt 0:00:30]} Rd4+ {[%emt 0:00:30]} 67. Ke3 {[%emt 0:00:30]} Re4+ {[%emt 0:00:30]} 68. Kd3 {[%emt 0:00:30]} 1/2-1/2

[Event "Djerba Festival Open-B 2025"]
[Site "Djerba"]
[Date "2025.02.21"]
[Round "6.28"]
[White "Perrusset, Barbara"]
[Black "Baba, Mouadh"]
[Result "0-1"]
[Annotator "NA"]
[ECO "C47"]
[WhiteElo "1869"]
[BlackElo "1688"]
[PlyCount "73"]
[EventDate "2025.02.15"]
[EventType "swiss"]
[EventCountry "TUN"]
[SourceTitle "playchess.com"]
[Source "ChessBase"]
[SourceQuality "1"]
[TimeControl "5400+30"]

1. e4 {[%emt 0:00:19]} e5 {[%emt 0:00:08]} 2. Nf3 {[%emt 0:00:22]} Nc6 {[%emt 0:00:42]} 3. Nc3 {[%emt 0:00:38]} Nf6 {[%emt 0:01:32]} 4. d4 {[%emt 0:00:07]} exd4 {[%emt 0:00:51]} 5. Nxd4 {[%emt 0:00:11]} Bb4 {[%emt 0:00:46]} 6. Nxc6 {[%emt 0:00:18]} bxc6 {[%emt 0:00:22]} 7. Bd3 {[%emt 0:00:27]} d5 {[%emt 0:02:12]} 8. exd5 {[%emt 0:01:00]} cxd5 {[%emt 0:00:43]} 9. O-O {[%emt 0:00:09]} O-O {[%emt 0:00:29]} 10. Bg5 {[%emt 0:02:52]} Bb7 {[%emt 0:05:28]} 11. Qf3 {[%emt 0:21:46]} Be7 {[%emt 0:08:00]} 12. Rfe1 {[%emt 0:07:07]} h6 {[%emt 0:05:55]} 13. Bxh6 {[%emt 0:10:29]} gxh6 {[%emt 0:01:15]} 14. Qg3+ {[%emt 0:02:09]} Kh8 {[%emt 0:00:19]} 15. Qe3 {[%emt 0:00:06]} Ng8 {[%emt 0:02:23]} 16. Qe5+ {[%emt 0:11:28]} f6 {[%emt 0:02:28]} 17. Qh5 {[%emt 0:01:21]} Bb4 {[%emt 0:07:31]} 18. Re3 {[%emt 0:09:38]} Bd6 {[%emt 0:20:10]} 19. Rae1 {[%emt 0:18:29]} d4 {[%emt 0:06:17]} 20. Qg6 {[%emt 0:05:20]} f5 {[%emt 0:00:25]} 21. Rh3 {[%emt 0:04:12]} Rf6 {[%emt 0:02:33]} 22. Rxh6+ {[%emt 0:01:29]} Nxh6 {[%emt 0:00:25]} 23. Re8+ {[%emt 0:00:06]} Qxe8 {[%emt 0:01:52]} 24. Qxf6+ {[%emt 0:00:12]} Kh7 {[%emt 0:01:55]} 25. Bxf5+ {[%emt 0:00:14]} Nxf5 {[%emt 0:00:11]} 26. Qxf5+ {[%emt 0:00:05]} Qg6 {[%emt 0:01:23]} 27. Qh3+ {[%emt 0:01:39]} Kg8 {[%emt 0:00:34]} 28. Ne2 {[%emt 0:00:19]} Re8 {[%emt 0:00:22]} 29. Qb3+ {[%emt 0:00:46]} Qf7 {[%emt 0:00:49]} 30. Qxb7 {[%emt 0:00:10]} Rxe2 {[%emt 0:00:13]} 31. Qc8+ {[%emt 0:00:15]} Re8 {[%emt 0:00:24]} 32. Qg4+ {[%emt 0:00:11]} Qg7 {[%emt 0:00:26]} 33. Qd1 {[%emt 0:00:42]} Qg6 {[%emt 0:05:06]} 34. Kf1 {[%emt 0:01:27]} Bxh2 {[%emt 0:01:43]} 35. Qxd4 {[%emt 0:00:15]} Qa6+ {[%emt 0:00:33]} 36. c4 {[%emt 0:00:06]} Qe6 {[%emt 0:00:25]} 37. Qd1 {[%emt 0:00:00]} 0-1

[Event "Djerba Festival Open-B 2025"]
[Site "Djerba"]
[Date "2025.02.21"]
[Round "7.1"]
[White "Zenaidi, Sadok"]
[Black "Azreug, Lazhar"]
[Result "1-0"]
[Annotator "NA RC"]
[ECO "B36"]
[WhiteElo "1872"]
[BlackElo "1793"]
[PlyCount "89"]
[EventDate "2025.02.15"]
[EventType "swiss"]
[EventCountry "TUN"]
[SourceTitle "playchess.com"]
[Source "ChessBase"]
[SourceQuality "1"]
[TimeControl "5400+30"]

1. e4 {[%emt 0:11:22]} c5 {[%emt 0:00:02]} 2. Nf3 {[%emt 0:00:06]} Nc6 {[%emt 0:00:02]} 3. d4 {[%emt 0:00:06]} cxd4 {[%emt 0:00:16]} 4. Nxd4 {[%emt 0:00:06]} g6 {[%emt 0:00:34]} 5. c4 {[%emt 0:00:10]} Nf6 {[%emt 0:00:49]} 6. Nc3 {[%emt 0:00:46]} d6 {[%emt 0:00:19]} 7. Be2 {[%emt 0:00:37]} Nxd4 {[%emt 0:00:17]} 8. Qxd4 {[%emt 0:00:05]} Bg7 {[%emt 0:00:06]} 9. Be3 {[%emt 0:00:23]} O-O {[%emt 0:00:49]} 10. Qd2 {[%emt 0:00:05]} Be6 {[%emt 0:00:27]} 11. Rb1 {[%emt 0:02:07]} Qc7 {[%emt 0:14:30]} 12. b3 {[%emt 0:00:55]} a5 {[%emt 0:10:59]} 13. f3 {[%emt 0:00:24]} Nd7 {[%emt 0:03:02]} 14. O-O {[%emt 0:09:56]} Nc5 {[%emt 0:05:59]} 15. Rfc1 {[%emt 0:01:23]} Rfc8 {[%emt 0:02:16]} 16. Bd1 {[%emt 0:03:37]} h5 {[%emt 0:03:30]} 17. a3 {[%emt 0:01:47]} Qd8 {[%emt 0:07:22]} 18. a4 {[%emt 0:15:24]} Ra6 {[%emt 0:04:42]} 19. Bc2 {[%emt 0:03:14]} Qb6 {[%emt 0:08:38]} 20. Nb5 {[%emt 0:02:09]} Bd7 {[%emt 0:02:29]} 21. f4 {[%emt 0:02:26]} Bc6 {[%emt 0:04:03]} 22. Qe2 {[%emt 0:03:57]} Qd8 {[%emt 0:02:52]} 23. Bd2 {[%emt 0:04:29]} e5 {[%emt 0:09:46]} 24. f5 {[%emt 0:00:29]} b6 {[%emt 0:03:12]} 25. Rf1 {[%emt 0:01:27]} Qe7 {[%emt 0:02:09]} 26. Rf3 {[%emt 0:02:46]} Raa8 {[%emt 0:01:37]} 27. Rbf1 {[%emt 0:00:15]} Bh8 {[%emt 0:03:30]} 28. Rg3 {[%emt 0:02:14]} Kh7 {[%emt 0:02:22]} 29. Qe3 {[%emt 0:00:45]} Bg7 {[%emt 0:05:11]} 30. Rgf3 {[%emt 0:01:45]} f6 {[%emt 0:02:14]} 31. fxg6+ {[%emt 0:00:37]} Kxg6 {[%emt 0:00:24]} 32. Qe2 {[%emt 0:01:45]} Rh8 {[%emt 0:00:35]} 33. Nc3 {[%emt 0:01:30]} Ne6 {[%emt 0:00:56]} 34. Nd5 {[%emt 0:00:25]} Qb7 {[%emt 0:00:58]} 35. Rxf6+ {[%emt 0:00:28]} Bxf6 {[%emt 0:00:31]} 36. Rxf6+ {[%emt 0:00:04]} Kg7 {[%emt 0:00:13]} 37. Rxe6 {[%emt 0:00:10]} Bxd5 {[%emt 0:00:45]} 38. exd5 {[%emt 0:00:10]} Rad8 {[%emt 0:01:04]} 39. Rg6+ {[%emt 0:00:32]} Kf8 {[%emt 0:00:00]} 40. Qf3+ {[%emt 0:00:42]} Ke8 {[%emt 0:00:27]} 41. Re6+ {[%emt 0:01:04]} Kd7 {[%emt 0:00:14]} 42. Qf7+ {[%emt 0:00:15]} Kc8 {[%emt 0:00:12]} 43. Re7 {[%emt 0:00:04]} Qa6 {[%emt 0:00:46]} 44. Ra7 {[%emt 0:00:05]} Rh7 {[%emt 0:00:25]} 45. Bxh7 {[%emt 0:00:28]} 1-0

[Event "Djerba Festival Open-B 2025"]
[Site "Djerba"]
[Date "2025.02.21"]
[Round "7.2"]
[White "Schmittheisler, Guillaume"]
[Black "Rafik yassine"]
[Result "1-0"]
[Annotator "RC"]
[ECO "A96"]
[WhiteElo "1888"]
[BlackElo "1909"]
[PlyCount "61"]
[EventDate "2025.02.15"]
[EventType "swiss"]
[EventCountry "TUN"]
[SourceTitle "playchess.com"]
[Source "ChessBase"]
[SourceQuality "1"]
[TimeControl "5400+30"]

1. d4 {[%emt 0:00:37]} e6 {[%emt 0:00:23]} 2. c4 {[%emt 0:01:24]} f5 {[%emt 0:00:08]} 3. Nf3 {[%emt 0:01:02]} Nf6 {[%emt 0:00:07]} 4. g3 {[%emt 0:00:57]} Be7 {[%emt 0:00:18]} 5. Bg2 {[%emt 0:00:44]} d6 {[%emt 0:00:07]} 6. O-O {[%emt 0:01:05]} O-O {[%emt 0:00:05]} 7. Nc3 {[%emt 0:00:27]} Ne4 {[%emt 0:00:17]} 8. Ne1 {[%emt 0:03:43]} Nxc3 {[%emt 0:00:48]} 9. bxc3 {[%emt 0:00:13]} Nd7 {[%emt 0:02:32]} 10. e4 {[%emt 0:01:56]} e5 {[%emt 0:02:19]} 11. exf5 {[%emt 0:07:45]} Rxf5 {[%emt 0:00:15]} 12. Rb1 {[%emt 0:03:16]} Rf8 {[%emt 0:02:12]} 13. Nd3 {[%emt 0:01:44]} Bf6 {[%emt 0:06:34]} 14. Ba3 {[%emt 0:19:18]} exd4 {[%emt 0:09:14]} 15. Nf4 {[%emt 0:03:30]} Nb6 {[%emt 0:06:23]} 16. cxd4 {[%emt 0:00:40]} c6 {[%emt 0:03:57]} 17. Qb3 {[%emt 0:12:22]} g5 {[%emt 0:15:48]} 18. c5+ {[%emt 0:18:57]} Kh8 {[%emt 0:01:49]} 19. Nh5 {[%emt 0:01:29]} dxc5 {[%emt 0:10:24]} 20. Nxf6 {[%emt 0:03:09]} c4 {[%emt 0:02:36]} 21. Qe3 {[%emt 0:03:47]} Rxf6 {[%emt 0:00:20]} 22. Be7 {[%emt 0:00:39]} Re6 {[%emt 0:04:24]} 23. Bxd8 {[%emt 0:00:29]} Rxe3 {[%emt 0:00:19]} 24. Bf6+ {[%emt 0:00:37]} Kg8 {[%emt 0:00:08]} 25. fxe3 {[%emt 0:00:08]} h6 {[%emt 0:00:32]} 26. Be5 {[%emt 0:02:43]} Nd5 {[%emt 0:05:23]} 27. Bxd5+ {[%emt 0:02:00]} cxd5 {[%emt 0:00:11]} 28. Rf6 {[%emt 0:00:50]} Kh7 {[%emt 0:01:10]} 29. Rf8 {[%emt 0:02:34]} b6 {[%emt 0:01:31]} 30. g4 {[%emt 0:01:13]} Kg6 {[%emt 0:00:57]} 31. Rbf1 {[%emt 0:00:38]} 1-0

[Event "Djerba Festival Open-B 2025"]
[Site "Djerba"]
[Date "2025.02.21"]
[Round "7.3"]
[White "Tahir, Abderrahmane"]
[Black "Kole, Arda"]
[Result "1-0"]
[Annotator "NA RC"]
[ECO "A07"]
[WhiteElo "1891"]
[BlackElo "1848"]
[PlyCount "86"]
[EventDate "2025.02.15"]
[EventType "swiss"]
[EventCountry "TUN"]
[SourceTitle "playchess.com"]
[Source "ChessBase"]
[SourceQuality "1"]
[TimeControl "5400+30"]

1. Nf3 {[%emt 0:05:32]} d5 {[%emt 0:00:52]} 2. g3 {[%emt 0:00:00]} Nf6 {[%emt 0:00:13]} 3. Bg2 {[%emt 0:00:42]} c6 {[%emt 0:02:20]} 4. O-O {[%emt 0:02:21]} h6 {[%emt 0:05:39]} 5. d3 {[%emt 0:03:24]} Bf5 {[%emt 0:00:45]} 6. Nbd2 {[%emt 0:01:20]} Nbd7 {[%emt 0:01:28]} 7. Re1 {[%emt 0:00:37]} Bh7 {[%emt 0:00:49]} 8. e4 {[%emt 0:00:49]} dxe4 {[%emt 0:00:47]} 9. dxe4 {[%emt 0:00:03]} e6 {[%emt 0:08:15]} 10. e5 {[%emt 0:02:56]} Nd5 {[%emt 0:00:31]} 11. Ne4 {[%emt 0:07:04]} Nc5 {[%emt 0:05:21]} 12. Nfd2 {[%emt 0:22:25]} Qc7 {[%emt 0:07:16]} 13. Nxc5 {[%emt 0:03:15]} Bxc5 {[%emt 0:00:36]} 14. Ne4 {[%emt 0:00:34]} Bxe4 {[%emt 0:11:26]} 15. Rxe4 {[%emt 0:05:56]} O-O-O {[%emt 0:05:53]} 16. Qe2 {[%emt 0:02:14]} Rd7 {[%emt 0:01:53]} 17. Bd2 {[%emt 0:02:22]} Rhd8 {[%emt 0:01:03]} 18. Be1 {[%emt 0:01:33]} Qb6 {[%emt 0:14:37]} 19. c3 {[%emt 0:03:27]} Be7 {[%emt 0:04:39]} 20. b4 {[%emt 0:08:26]} Kb8 {[%emt 0:02:12]} 21. a4 {[%emt 0:01:32]} Rc8 {[%emt 0:09:18]} 22. a5 {[%emt 0:02:34]} Qd8 {[%emt 0:01:02]} 23. Rb1 {[%emt 0:04:03]} Bf8 {[%emt 0:04:41]} 24. c4 {[%emt 0:01:57]} Ne7 {[%emt 0:00:15]} 25. b5 {[%emt 0:05:22]} c5 {[%emt 0:00:10]} 26. Qf3 {[%emt 0:00:40]} Nf5 {[%emt 0:05:11]} 27. Bc3 {[%emt 0:04:05]} Qe7 {[%emt 0:03:12]} 28. a6 {[%emt 0:01:44]} b6 {[%emt 0:00:48]} 29. Ree1 {[%emt 0:01:54]} Kc7 {[%emt 0:00:51]} 30. Qb7+ {[%emt 0:01:36]} Kd8 {[%emt 0:00:08]} 31. Rbd1 {[%emt 0:00:55]} Nd4 {[%emt 0:01:19]} 32. Bxd4 {[%emt 0:00:21]} cxd4 {[%emt 0:00:26]} 33. Bc6 {[%emt 0:02:42]} Rcc7 {[%emt 0:01:22]} 34. Qb8+ {[%emt 0:01:30]} Rc8 {[%emt 0:00:03]} 35. Qb7 {[%emt 0:00:00]} Rcc7 {[%emt 0:01:04]} 36. Bxd7 {[%emt 0:00:33]} Rxb7 {[%emt 0:00:05]} 37. axb7 {[%emt 0:00:03]} Kc7 {[%emt 0:00:07]} 38. Rxd4 {[%emt 0:00:13]} Kxb7 {[%emt 0:02:14]} 39. Bc6+ $18 {[%emt 0:00:06]} Kc8 {[%emt 0:00:37]} 40. Red1 {[%emt 0:00:09]} Qg5 {[%emt 0:00:29]} 41. Re1 {[%emt 0:04:01]} Qe7 {[%emt 0:01:03]} 42. Red1 {[%emt 0:00:30]} Qb4 43. Rd7 {[%emt 0:00:30]} Be7 {[%emt 0:00:55]} 1-0

[Event "Djerba Festival Open-B 2025"]
[Site "Djerba"]
[Date "2025.02.21"]
[Round "7.4"]
[White "Lebret, Jean-Michel"]
[Black "Skhiri Youssef"]
[Result "0-1"]
[Annotator "RC"]
[ECO "C54"]
[WhiteElo "1995"]
[BlackElo "1808"]
[PlyCount "54"]
[EventDate "2025.02.15"]
[EventType "swiss"]
[EventCountry "TUN"]
[SourceTitle "playchess.com"]
[Source "ChessBase"]
[SourceQuality "1"]
[TimeControl "5400+30"]

1. e4 {[%emt 0:00:05]} e5 {[%emt 0:00:05]} 2. Nf3 {[%emt 0:00:20]} Nc6 {[%emt 0:00:04]} 3. Bc4 {[%emt 0:00:16]} Bc5 {[%emt 0:00:12]} 4. c3 {[%emt 0:00:27]} Nf6 {[%emt 0:00:04]} 5. d3 {[%emt 0:00:08]} d6 {[%emt 0:00:26]} 6. b4 {[%emt 0:01:11]} Bb6 {[%emt 0:00:20]} 7. O-O {[%emt 0:01:12]} h6 {[%emt 0:01:08]} 8. Re1 {[%emt 0:07:49]} O-O {[%emt 0:05:17]} 9. a4 {[%emt 0:01:38]} a6 {[%emt 0:00:53]} 10. Be3 {[%emt 0:02:08]} Bxe3 {[%emt 0:01:09]} 11. Rxe3 {[%emt 0:00:43]} Be6 {[%emt 0:04:37]} 12. Nbd2 {[%emt 0:01:39]} Bxc4 {[%emt 0:13:53]} 13. Nxc4 {[%emt 0:01:45]} b5 {[%emt 0:18:26]} 14. Na3 {[%emt 0:13:30]} Qb8 {[%emt 0:04:10]} 15. Re1 {[%emt 0:05:52]} Ne7 {[%emt 0:06:19]} 16. Qb3 {[%emt 0:05:03]} Ng6 {[%emt 0:03:14]} 17. g3 {[%emt 0:02:56]} c6 {[%emt 0:09:48]} 18. Nc2 {[%emt 0:01:52]} Qc8 {[%emt 0:02:26]} 19. Kg2 {[%emt 0:04:42]} Nf4+ {[%emt 0:10:36]} 20. Kh1 {[%emt 0:12:22]} Qh3 {[%emt 0:06:01]} 21. Rg1 {[%emt 0:03:22]} Nxd3 {[%emt 0:01:25]} 22. Rg2 {[%emt 0:00:07]} Nxe4 {[%emt 0:00:57]} 23. Kg1 {[%emt 0:01:51]} Qf5 {[%emt 0:02:54]} 24. Nce1 {[%emt 0:00:30]} Nexf2 {[%emt 0:01:28]} 25. Nxd3 {[%emt 0:01:44]} Nh3+ {[%emt 0:01:04]} 26. Kh1 {[%emt 0:00:59]} Qxf3 {[%emt 0:00:08]} 27. Qd1 {[%emt 0:02:55]} Qxd1+ {[%emt 0:06:56]} 0-1

[Event "Djerba Festival Open-B 2025"]
[Site "Djerba"]
[Date "2025.02.21"]
[Round "7.5"]
[White "Bensadi, Lotfi"]
[Black "MEZGOURI NOUREDDINE"]
[Result "1-0"]
[Annotator "NA"]
[ECO "B15"]
[WhiteElo "1971"]
[BlackElo "1891"]
[PlyCount "47"]
[EventDate "2025.02.15"]
[EventType "swiss"]
[EventCountry "TUN"]
[SourceTitle "playchess.com"]
[Source "ChessBase"]
[SourceQuality "1"]
[TimeControl "5400+30"]

1. e4 {[%emt 0:04:30]} c6 {[%emt 0:00:25]} 2. Nc3 {[%emt 0:00:28]} e6 {[%emt 0:01:13]} 3. d4 {[%emt 0:02:58]} d5 {[%emt 0:00:08]} 4. Nf3 {[%emt 0:01:31]} Nf6 {[%emt 0:03:31]} 5. e5 {[%emt 0:01:51]} Ng8 {[%emt 0:00:23]} 6. Be3 {[%emt 0:01:10]} c5 {[%emt 0:00:55]} 7. dxc5 {[%emt 0:04:06]} a6 {[%emt 0:01:02]} 8. b4 {[%emt 0:01:19]} Ne7 {[%emt 0:00:57]} 9. Nd4 {[%emt 0:01:49]} Nbc6 {[%emt 0:03:24]} 10. a3 {[%emt 0:05:46]} Nxe5 {[%emt 0:00:23]} 11. f4 {[%emt 0:00:17]} N5c6 {[%emt 0:00:29]} 12. Be2 {[%emt 0:01:26]} Nxd4 {[%emt 0:00:35]} 13. Bxd4 {[%emt 0:00:18]} Nf5 {[%emt 0:00:13]} 14. O-O {[%emt 0:00:34]} Nxd4 {[%emt 0:08:35]} 15. Qxd4 {[%emt 0:00:07]} Be7 {[%emt 1:15:47]} 16. Rad1 {[%emt 1:10:20]} Bf6 {[%emt 0:00:00]} 17. Qd2 {[%emt 0:00:00]} O-O {[%emt 0:00:00]} 18. Na4 {[%emt 0:00:00]} Rb8 {[%emt 0:00:00]} 19. Nb6 {[%emt 0:00:00]} Qe8 {[%emt 0:00:00]} 20. f5 {[%emt 0:00:00]} d4 {[%emt 0:00:00]} 21. fxe6 {[%emt 0:00:00]} fxe6 {[%emt 0:00:00]} 22. Bg4 {[%emt 0:00:00]} Qg6 {[%emt 0:00:00]} 23. Qe2 {[%emt 0:00:00]} Re8 {[%emt 0:00:00]} 24. Bh5 {[%emt 0:04:00]} 1-0

[Event "Djerba Festival Open-B 2025"]
[Site "Djerba"]
[Date "2025.02.21"]
[Round "7.6"]
[White "Cherad, Mohammed"]
[Black "Guirat, Saber"]
[Result "1/2-1/2"]
[Annotator "RC"]
[ECO "B49"]
[WhiteElo "1768"]
[BlackElo "1956"]
[PlyCount "91"]
[EventDate "2025.02.15"]
[EventType "swiss"]
[EventCountry "TUN"]
[SourceTitle "playchess.com"]
[Source "ChessBase"]
[SourceQuality "1"]
[TimeControl "5400+30"]

1. e4 {[%emt 1:31:00]} c5 {[%emt 1:31:00]} 2. Nf3 {[%emt 0:00:30]} e6 {[%emt 0:00:30]} 3. d4 {[%emt 0:00:30]} cxd4 {[%emt 0:00:30]} 4. Nxd4 {[%emt 0:00:30]} Nc6 {[%emt 0:00:30]} 5. Nc3 {[%emt 0:00:30]} Qc7 {[%emt 0:00:30]} 6. Be2 {[%emt 0:00:30]} a6 {[%emt 0:00:30]} 7. O-O {[%emt 0:00:30]} Nf6 {[%emt 0:00:30]} 8. Be3 {[%emt 0:00:30]} b5 {[%emt 0:00:30]} 9. a3 {[%emt 0:00:30]} Bb7 {[%emt 0:00:30]} 10. Nxc6 {[%emt 0:00:30]} dxc6 {[%emt 0:00:30]} 11. f4 {[%emt 0:00:30]} Be7 {[%emt 0:00:30]} 12. e5 {[%emt 0:00:30]} Nd5 {[%emt 0:00:30]} 13. Nxd5 {[%emt 0:00:30]} cxd5 {[%emt 0:00:30]} 14. Bd3 {[%emt 0:00:30]} g6 {[%emt 0:00:30]} 15. Qg4 {[%emt 0:00:30]} h5 {[%emt 0:00:30]} 16. Qg3 {[%emt 0:00:30]} h4 {[%emt 0:00:30]} 17. Qg4 {[%emt 0:00:30]} d4 {[%emt 0:00:30]} 18. Bxd4 {[%emt 0:00:30]} O-O-O {[%emt 0:00:30]} 19. Bf2 {[%emt 0:00:30]} h3 {[%emt 0:00:30]} 20. Rfc1 {[%emt 0:00:30]} hxg2 {[%emt 0:00:30]} 21. c4 {[%emt 0:00:30]} b4 {[%emt 0:00:30]} 22. Qe2 {[%emt 0:00:30]} Rh3 {[%emt 0:00:30]} 23. Be4 {[%emt 0:00:30]} Rdh8 {[%emt 0:00:30]} 24. Bg3 {[%emt 0:00:30]} Bh4 {[%emt 0:00:30]} 25. Bxb7+ {[%emt 0:00:30]} Qxb7 {[%emt 0:00:30]} 26. Qxg2 {[%emt 0:00:30]} Bxg3 {[%emt 0:00:30]} 27. Qxb7+ {[%emt 0:00:30]} Kxb7 {[%emt 0:00:30]} 28. hxg3 {[%emt 0:00:30]} Rxg3+ {[%emt 0:00:30]} 29. Kf2 {[%emt 0:00:30]} Rb3 {[%emt 0:00:30]} 30. axb4 {[%emt 0:00:30]} Rxb2+ {[%emt 0:00:30]} 31. Ke3 {[%emt 0:00:30]} Rh3+ {[%emt 0:00:30]} 32. Kd4 {[%emt 0:00:30]} Rf3 {[%emt 0:00:30]} 33. Rf1 {[%emt 0:00:30]} Rxf1 {[%emt 0:00:30]} 34. Rxf1 {[%emt 0:00:30]} Rxb4 {[%emt 0:00:30]} 35. Kc5 {[%emt 0:00:30]} Rb2 {[%emt 0:00:30]} 36. Kd6 {[%emt 0:00:30]} Kc8 {[%emt 0:00:30]} 37. Ke7 {[%emt 0:00:30]} Rb7+ {[%emt 0:00:30]} 38. Kf6 {[%emt 0:00:30]} Rc7 {[%emt 0:00:30]} 39. c5 {[%emt 0:00:30]} Kb7 {[%emt 0:00:30]} 40. Rb1+ {[%emt 0:00:30]} Kc6 {[%emt 0:00:30]} 41. Rb6+ {[%emt 0:00:30]} Kxc5 {[%emt 0:00:30]} 42. Rxa6 {[%emt 0:00:30]} Kd4 {[%emt 0:00:30]} 43. Ra4+ {[%emt 0:00:30]} Ke3 {[%emt 0:00:30]} 44. Kg5 {[%emt 0:00:30]} Rd7 {[%emt 0:00:30]} 45. Ra3+ {[%emt 0:00:30]} Ke4 {[%emt 0:00:30]} 46. Ra4+ {[%emt 0:00:30]} 1/2-1/2